fUSD/lending_fUSD_20251231
["ID","MTS","AMOUNT","RATE_DAILY","PERIOD"]
[400243801,1767215432591,-268.11,0.00014313,2]
[400243802,1767215432601,-7498.15,0.0001446,2]
[400243803,1767215432611,-166.66,0.00014554,2]
[400243804,1767215432621,-4101.73778066,0.00014733,2]
[400243805,1767215432631,-3615.0,0.00014733,2]
[400243806,1767215432641,-166.66,0.00014842,2]
[400243807,1767215432652,-184.86,0.00014954,2]
[400243808,1767215432662,-42798.43,0.00014979,2]
[400243809,1767215432672,-150.0,0.00015003,2]
[400243810,1767215432682,-12060.1947352,0.0001505,2]
[400243811,1767215432692,-166.66,0.0001513,2]
[400243812,1767215432701,-1152.0,0.00015199,2]
[400243813,1767215432712,-151.88196593,0.00015228,2]
[400243814,1767215432722,-150.0,0.00015288,2]
[400243815,1767215432731,-150.0,0.00015288,2]
[400243816,1767215432742,-171.10828189,0.00015288,2]
[400243817,1767215432751,-245.69368063,0.00015288,2]
[400243818,1767215432762,-150.0,0.00015288,2]
[400243819,1767215432771,-150.0,0.00015288,2]
[400243820,1767215432781,-270.7355794,0.00015288,2]
[400243821,1767215432791,-199.77046782,0.00015288,2]
[400243822,1767215432800,-284.46660851,0.00015288,2]
[400243823,1767215432809,-176.41435157,0.00015288,2]
[400243824,1767215432819,-4101.73778066,0.00015455,2]
[400243825,1767215432829,-183.9,0.00015752,2]
[400243826,1767215432839,-1403.0,0.00015752,2]
[400243827,1767215432848,-613.0,0.00015752,2]
[400243828,1767215432858,-3462.0,0.00015752,2]
[400243829,1767215432867,-1328.0,0.00015752,2]
[400243830,1767215432877,-1264.0,0.00015752,2]
[400243831,1767215432892,-432.0,0.00015752,2]
[400243832,1767215432903,-913.0,0.00015752,2]
[400243833,1767215432916,-1199.0,0.00015752,2]
[400243834,1767215432927,-2433.0,0.00015752,2]
[400243835,1767215432936,-502.0,0.00015836,2]
[400243836,1767215432947,-150.0,0.00015846,2]
[400243837,1767215432957,-150.0,0.00015846,2]
[400243838,1767215432967,-150.0,0.00015846,2]
[400243839,1767215432976,-150.114,0.00015846,2]
[400243840,1767215432986,-150.065,0.00015846,2]
[400243841,1767215432996,-150.0,0.00015846,2]
[400243842,1767215433007,-211.705,0.00015846,2]
[400243843,1767215433016,-250.0,0.00015846,2]
[400243844,1767215433026,-250.0,0.00015846,2]
[400243845,1767215433036,-227.273,0.00015846,2]
[400243846,1767215433046,-167.0,0.00015846,2]
[400243847,1767215433056,-500.0,0.00015918,2]
[400243848,1767215433065,-422.3008224,0.0001596,2]
[400243849,1767215433075,-402.23740882,0.00015973,2]
[400243850,1767215433085,-349.16265713,0.00015973,2]
[400243851,1767215433096,-500.0,0.00015973,2]
[400243852,1767215433106,-500.0,0.00015973,2]
[400243853,1767215433116,-500.0,0.00015973,2]
[400243854,1767215433125,-500.0,0.00015973,2]
[400243855,1767215433135,-648.46173605,0.00015973,2]
[400243856,1767215433145,-500.0,0.00015973,2]
[400243857,1767215433155,-598.60555363,0.00015973,2]
[400243858,1767215433165,-500.0,0.00015973,2]
[400243859,1767215433175,-500.0,0.00015973,2]
[400243860,1767215433185,-500.0,0.00015973,2]
[400243861,1767215433195,-500.0,0.00015973,2]
[400243862,1767215433204,-500.0,0.00015973,2]
[400243863,1767215433215,-500.0,0.00015973,2]
[400243864,1767215433224,-500.0,0.00015973,2]
[400243865,1767215433234,-500.66742167,0.00015973,2]
[400243866,1767215433251,-500.0,0.00015973,2]
[400243867,1767215433260,-500.0,0.00015973,2]
[400243868,1767215433270,-500.0,0.00015973,2]
[400243869,1767215433280,-500.0,0.00015973,2]
[400243870,1767215433291,-500.0,0.00015973,2]
[400243871,1767215433301,-500.0,0.00015973,2]
[400243872,1767215433312,-500.0,0.00015973,2]
[400243873,1767215433323,-500.0,0.00015973,2]
[400243874,1767215433334,-500.0,0.00015973,2]
[400243875,1767215433344,-500.0,0.00015973,2]
[400243876,1767215433355,-183.9,0.00016026,2]
[400243877,1767215433365,-660.35,0.00016055,2]
[400243878,1767215433375,-151.0,0.00016112,2]
[400243879,1767215433386,-151.0,0.00016112,2]
[400243880,1767215433397,-151.0,0.00016112,2]
[400243881,1767215433407,-151.0,0.00016112,2]
[400243882,1767215433417,-150.0,0.00016137,2]
[400243883,1767215433428,-4101.73778066,0.00016178,2]
[400243884,1767215433439,-151.0,0.00016179,2]
[400243885,1767215433449,-151.0,0.00016179,2]
[400243886,1767215433459,-340.69341682,0.000163,2]
[400243887,1767215433469,-151.88196593,0.00016316,2]
[400243888,1767215433758,-4004.6,0.00016438,2]
[400243889,1767215433768,-1000.0,0.00016521,2]
[400243890,1767215433778,-1000.0,0.00016521,2]
[400243891,1767215433788,-1000.0,0.00016521,2]
[400243892,1767215433798,-1000.0,0.00016521,2]
[400243893,1767215433808,-1000.0,0.00016521,2]
[400243894,1767215433818,-1000.0,0.00016521,2]
[400243895,1767215433827,-1000.0,0.00016521,2]
[400243896,1767215433837,-1000.0,0.00016521,2]
[400243897,1767215433847,-457.36063002,0.00016521,2]
[400243898,1767215433857,-1000.0,0.00016521,2]
[400243899,1767215433867,-648.80816357,0.0001666,2]
[400243900,1767215433877,-4004.6,0.00016712,2]
[400243901,1767215433890,-1613.0,0.00016712,2]
[400243902,1767215433901,-642.05,0.00016721,2]
[400243903,1767215433915,-360.80682,0.0001683,2]
[400243904,1767215433926,-360.80682,0.0001683,2]
[400243905,1767215433936,-360.80682,0.0001683,2]
[400243906,1767215433947,-354.55858705,0.0001683,2]
[400243907,1767215433957,-360.80682,0.0001685,2]
[400243908,1767215433966,-360.80683,0.0001688,2]
[400243909,1767215433977,-227.72711608,0.00016899,2]
[400243910,1767215433987,-552.06365,0.000169,2]
[400243911,1767215433997,-1454.3177,0.000169,2]
[400243912,1767215434006,-4101.73778066,0.000169,2]
[400243913,1767215434016,-175.71265842,0.000169,2]
[400243914,1767215434026,-3372.47457484,0.000169,2]
[400243915,1767215434035,-370.90702962,0.000169,2]
[400243916,1767215434045,-360.80682,0.0001691,2]
[400243917,1767215434055,-9999.99,0.00016922,2]
[400243918,1767215434064,-6159.01,0.00016922,2]
[400243919,1767215434074,-150.99,0.00016922,2]
[400243920,1767215434084,-360.80683,0.0001693,2]
[400243921,1767215434094,-3899.0,0.00016959,2]
[400243922,1767215434104,-151.10362601,0.00016973,2]
[400243923,1767215434114,-242.55451584,0.00016982,2]
[400243924,1767215434124,-1812.34439512,0.00016983,2]
[400243925,1767215434134,-218.67685232,0.00016983,2]
[400243926,1767215434144,-502.86586576,0.00016983,2]
[400243927,1767215434154,-4004.6,0.00016986,2]
[400243928,1767215434163,-195.83057641,0.00016986,2]
[400243929,1767215434173,-150.0,0.00016986,2]
[400243930,1767215434182,-263.57511802,0.00016986,2]
[400243931,1767215434192,-204.18748814,0.00016986,2]
[400243932,1767215434201,-14709.21,0.00016986,2]
[400243933,1767215434211,-1812.34439512,0.0001699,2]
[400243934,1767215434220,-1812.34439512,0.0001699,2]
[400243935,1767215434230,-500.0,0.00016992,2]
[400243936,1767215434240,-500.0,0.00016992,2]
[400243937,1767215434250,-500.0,0.00016992,2]
[400243938,1767215434260,-500.0,0.00016992,2]
[400243939,1767215434270,-150.0,0.00016992,2]
[400243940,1767215434279,-3106.30663624,0.00016993,2]
[400243941,1767215434293,-106883.19683198,0.00016993,2]
[400243942,1767215434304,-96781.77789855,0.00016993,2]
[400243943,1767215434316,-168617.66039663,0.00016993,2]
[400243944,1767215434326,-300.0,0.00016999,2]
[400243945,1767215434336,-300.0,0.00016999,2]
[400243946,1767215434345,-300.0,0.00016999,2]
[400243947,1767215434355,-300.0,0.00016999,2]
[400243948,1767215434366,-300.0,0.00016999,2]
[400243949,1767215434375,-500.0,0.00016999,2]
[400243950,1767215434385,-500.0,0.00016999,2]
[400243951,1767215434395,-500.0,0.00016999,2]
[400243952,1767215434405,-500.0,0.00016999,2]
[400243953,1767215434415,-500.0,0.00016999,2]
[400243954,1767215434424,-500.0,0.00016999,2]
[400243955,1767215434434,-500.0,0.00016999,2]
[400243956,1767215434444,-500.0,0.00016999,2]
[400243957,1767215434453,-500.0,0.00016999,2]
[400243958,1767215434463,-500.0,0.00016999,2]
[400243959,1767215434473,-500.0,0.00016999,2]
[400243960,1767215434483,-500.0,0.00016999,2]
[400243961,1767215434493,-500.0,0.00016999,2]
[400243962,1767215434503,-500.0,0.00016999,2]
[400243963,1767215434513,-332.99,0.00016999,2]
[400243964,1767215434523,-500.0,0.00016999,2]
[400243965,1767215434532,-500.0,0.00016999,2]
[400243966,1767215434542,-500.0,0.00016999,2]
[400243967,1767215434551,-500.0,0.00016999,2]
[400243968,1767215434561,-500.0,0.00016999,2]
[400243969,1767215434570,-500.0,0.00016999,2]
[400243970,1767215434579,-500.0,0.00016999,2]
[400243971,1767215434589,-500.0,0.00016999,2]
[400243972,1767215434599,-500.0,0.00016999,2]
[400243973,1767215434609,-500.0,0.00016999,2]
[400243974,1767215434619,-590.60167877,0.00016999,2]
[400243975,1767215434628,-300.0,0.00016999,2]
[400243976,1767215434638,-150.0,0.00016999,2]
[400243977,1767215434648,-666.0,0.00016999,2]
[400243978,1767215434658,-21805.68520352,0.00017,2]
[400243979,1767215434676,-10950.37463114,0.00017,2]
[400243980,1767215434688,-9412.5,0.00017,2]
[400243981,1767215434700,-328.4750411,0.00017,2]
[400243982,1767215434712,-812.75505295,0.00017,2]
[400243983,1767215434897,340.80208677,0.00010398,2]
[400243984,1767215434936,445.89134248,0.00010398,2]
[400243985,1767215434980,500.0,0.00010398,2]
[400243986,1767215435029,500.0,0.00010398,2]
[400243987,1767215435083,500.0,0.00010398,2]
[400243988,1767215435147,500.0,0.00010398,2]
[400243989,1767215435201,500.0,0.00010398,2]
[400243990,1767215435280,500.0,0.00010398,2]
[400243991,1767215435333,500.0,0.00010398,2]
[400243992,1767215435402,500.0,0.00010398,2]
[400243993,1767215435460,500.0,0.00010398,2]
[400243994,1767215435513,500.0,0.00010398,2]
[400243995,1767215435597,103.77276873,0.00010398,2]
[400243996,1767215435627,396.22723127,0.00010398,2]
[400243997,1767215435680,500.0,0.00010398,2]
[400243998,1767215435738,500.0,0.00010398,2]
[400243999,1767215435791,500.0,0.00010398,2]
[400244000,1767215435858,500.0,0.00010398,2]
[400244001,1767215435938,532.88298006,0.00010398,2]
[400244002,1767215435997,500.0,0.00010398,2]
[400244003,1767215436054,500.0,0.00010398,2]
[400244004,1767215436123,500.0,0.00010398,2]
[400244005,1767215436186,500.0,0.00010398,2]
[400244006,1767215436238,153.7373739,0.00010398,2]
[400244007,1767215436267,346.2626261,0.00010398,2]
[400244008,1767215436330,500.0,0.00010398,2]
[400244009,1767215436396,500.0,0.00010398,2]
[400244010,1767215436461,500.0,0.00010398,2]
[400244011,1767215436512,500.0,0.00010398,2]
[400244012,1767215436565,500.0,0.00010398,2]
[400244013,1767215436630,500.0,0.00010398,2]
[400244014,1767215436694,500.0,0.00010398,2]
[400244018,1767215437766,-417.89133502,0.00011099,2]
[400244019,1767215437779,-576.55739814,0.00011099,2]
[400244020,1767215437790,-1043.35,0.00011099,2]
[400244021,1767215437802,-2041.02769881,0.00011099,2]
[400244022,1767215437826,-1593.76540147,0.00011099,2]
[400244023,1767215437883,-2955.98875919,0.00011099,2]
[400244203,1767215439815,-435.88463301,0.00011099,2]
[400244205,1767215439827,-354.53810429,0.00011099,2]
[400244207,1767215439839,-1088.62035627,0.00011099,2]
[400244210,1767215439849,-220.68245498,0.00013699,2]
[400244212,1767215439859,-208.820533,0.00015752,2]
[400244219,1767215439923,-265.96,0.00015752,2]
[400244221,1767215439934,-914.54928382,0.00015752,2]
[400244233,1767215440033,-3422.67018318,0.00015752,2]
[400244235,1767215440043,-500.0,0.00016438,2]
[400244237,1767215440053,-500.0,0.00016438,2]
[400244239,1767215440063,-500.0,0.00016438,2]
[400244241,1767215440073,-500.0,0.00016438,2]
[400244243,1767215440083,-500.0,0.00016438,2]
[400244245,1767215440094,-500.0,0.00016438,2]
[400244247,1767215440104,-500.0,0.00016438,2]
[400244249,1767215440114,-500.0,0.00016438,2]
[400244251,1767215440124,-500.0,0.00016438,2]
[400244254,1767215440135,-500.0,0.00016438,2]
[400244256,1767215440145,-500.0,0.00016438,2]
[400244258,1767215440155,-500.0,0.00016438,2]
[400244260,1767215440165,-500.0,0.00016438,2]
[400244262,1767215440175,-253.12548746,0.00016438,2]
[400244264,1767215440186,-500.0,0.00016438,2]
[400244266,1767215440196,-500.0,0.00016438,2]
[400244268,1767215440206,-500.0,0.00016438,2]
[400244270,1767215440216,-500.0,0.00016438,2]
[400244273,1767215440226,-500.0,0.00016438,2]
[400244275,1767215440236,-500.0,0.00016438,2]
[400244277,1767215440246,-500.0,0.00016438,2]
[400244278,1767215440256,-500.0,0.00016438,2]
[400244280,1767215440266,-500.0,0.00016438,2]
[400244282,1767215440276,-500.0,0.00016438,2]
[400244285,1767215440287,-500.0,0.00016438,2]
[400244287,1767215440297,-500.0,0.00016438,2]
[400244289,1767215440307,-500.0,0.00016438,2]
[400244292,1767215440317,-500.0,0.00016438,2]
[400244295,1767215440326,-500.0,0.00016438,2]
[400244297,1767215440336,-72462.62826865,0.00017,2]
[400244300,1767215440353,-60946.93440316,0.00017,2]
[400244363,1767215440939,-1.7e-07,0.00017,2]
[400244365,1767215440951,-298.51436949,0.00017,2]
[400244367,1767215440962,-954.72283817,0.00017,2]
[400244369,1767215440974,-6035.95388972,0.00017,2]
[400244372,1767215440987,-3689.52,0.00017,2]
[400244374,1767215440999,-17845.8268315,0.00017,2]
[400244376,1767215441010,-7028.84508125,0.00017,2]
[400244379,1767215441022,-373.35882448,0.00017,2]
[400244381,1767215441034,-442.46152943,0.00017,2]
[400244383,1767215441046,-1875128.76844216,0.00017,2]
[400244385,1767215441057,-1003.32959622,0.00017,2]
[400244714,1767215444252,-465.08686962,0.00011099,2]
[400244717,1767215444264,-5563.77620906,0.00011099,2]
[400244719,1767215444276,-3084.75252753,0.00011099,2]
[400244729,1767215444375,-1394.00807998,0.00011099,2]
[400244732,1767215444385,-6542.0,0.00016402,2]
[400244734,1767215444395,-7125.11959707,0.00017,2]
[400244864,1767215445717,-12359.99865802,0.00017,2]
[400244867,1767215445729,-1004.86603967,0.00017,2]
[400244873,1767215445772,-1074.08152458,0.00017,2]
[400244876,1767215445784,-2074.74606667,0.00017,2]
[400245012,1767215447142,-6802.16,0.00017,2]
[400245016,1767215447163,-174399.99999994,0.00017,2]
[400245018,1767215447175,-10264.48088164,0.00017,2]
[400245020,1767215447187,-1367.80010138,0.00017,2]
[400245022,1767215447199,-3012.19721097,0.00017,2]
[400245024,1767215447210,-44490.98504339,0.00017,2]
[400245027,1767215447222,-16382.54989279,0.00017,2]
[400245029,1767215447236,-503.26943875,0.00017,2]
[400245031,1767215447248,-411.999998,0.00017,2]
[400245037,1767215447300,500.0,0.00010398,2]
[400245043,1767215447344,500.0,0.00010398,2]
[400245049,1767215447394,500.0,0.00010398,2]
[400245055,1767215447442,500.0,0.00010398,2]
[400245061,1767215447488,500.0,0.00010398,2]
[400245067,1767215447535,500.0,0.00010398,2]
[400245074,1767215447593,500.0,0.00010398,2]
[400245611,1767215453346,500.0,0.00010399,2]
[400246093,1767215460797,500.0,0.00043208,120]
[400246094,1767215477968,10000.01,0.00010399,2]
[400246095,1767215478000,10000.01,0.00010399,2]
[400246096,1767215478031,10000.01,0.00010399,2]
[400246097,1767215478061,10000.01,0.00010399,2]
[400246098,1767215478091,10000.01,0.00010399,2]
[400246099,1767215478126,10000.01,0.00010399,2]
[400246100,1767215478156,10000.01,0.00010399,2]
[400246101,1767215478186,10000.01,0.00010399,2]
[400246102,1767215478215,10000.01,0.00010399,2]
[400246103,1767215478244,10000.01,0.00010399,2]
[400246104,1767215478774,-868.85546804,0.00010399,2]
[400246105,1767215483981,-285.80296856,0.00010399,2]
[400246106,1767215485363,-198.09561381,0.00010398,2]
[400246107,1767215487704,-65.68959734,0.00010398,2]
[400246108,1767215489083,-229.86321288,0.00010399,2]
[400246109,1767215494109,3418.756,0.00010191,2]
[400246110,1767215494161,165.8,0.00010191,2]
[400246111,1767215494812,-154.02789653,0.00010399,2]
[400246112,1767215496991,-190.20455927,0.00010399,2]
[400246113,1767215501373,-163.29233995,0.00010399,2]
[400246114,1767215503524,-301.69,0.00010399,2]
[400246115,1767215504977,-172.57015114,0.00010399,2]
[400246116,1767215509462,-312.3725317,0.00010399,2]
[400246117,1767215512232,-261.72404386,0.00010399,2]
[400246118,1767215516853,-323.2413105,0.00010399,2]
[400246119,1767215520003,-228.4019628,0.00010399,2]
[400246120,1767215521224,300.0,0.00010398,2]
[400246121,1767215521531,-187.51889151,0.00010399,2]
[400246122,1767215521644,150.0,0.00010398,2]
[400246123,1767215525081,-311.76407705,0.00010399,2]
[400246124,1767215528608,-214.19703144,0.00010399,2]
[400246125,1767215529579,188.62016335,0.00010299,2]
[400246126,1767215532594,-548.81,0.00010399,2]
[400246127,1767215534710,-281.24640997,0.00010399,2]
[400246128,1767215536598,-263.72438278,0.00010399,2]
[400246129,1767215538585,-384.22816528,0.00010399,2]
[400246130,1767215541109,-260.00560258,0.00010399,2]
[400246131,1767215543203,-175.63794801,0.00010399,2]
[400246132,1767215545319,-317.78926653,0.00010399,2]
[400246133,1767215548980,-182.78144382,0.00010399,2]
[400246134,1767215550068,395.99570052,0.00010398,2]
[400246135,1767215550427,-377.00298481,0.00010399,2]
[400246136,1767215552070,-329.57088581,0.00010399,2]
[400246137,1767215553526,-356.1549256,0.00010399,2]
[400246138,1767215558528,-167.83704185,0.00010399,2]
[400246139,1767215560818,-259.00579205,0.00010399,2]
[400246140,1767215562392,-174.2340719,0.00010399,2]
[400246141,1767215565786,-372.14780938,0.00010399,2]
[400246142,1767215568964,-186.93987299,0.00010399,2]
[400246143,1767215574663,-342.24099423,0.00010399,2]
[400246144,1767215577124,-163.14635088,0.00010399,2]
[400246145,1767215591782,1200.0,0.00010398,2]
[400246146,1767215641238,300.0,0.00010398,2]
[400246147,1767215657479,151.0,0.00043209,50]
[400246148,1767215669961,188.62016335,0.00010299,2]
[400246149,1767215671403,183.78489306,0.00010299,2]
[400246150,1767215674579,151.0,0.00043209,50]
[400246151,1767215694004,569.62,0.00043209,120]
[400246152,1767215701173,300.0,0.00010398,2]
[400246153,1767215701412,1200.0,0.00010398,2]
[400246154,1767215701477,150.0,0.00010398,2]
[400246155,1767215705924,298.00001737,0.00010398,2]
[400246156,1767215720419,500.0,0.00010398,2]
[400246157,1767215720469,500.0,0.00010398,2]
[400246158,1767215720518,392.54255334,0.00010398,2]
[400246159,1767215728055,36.51131433,0.00010398,2]
[400246160,1767215728082,221.65564413,0.00010398,2]
[400246161,1767215734270,151.0,0.00043209,30]
[400246162,1767215734565,151.0,0.00043209,30]
[400246163,1767215734838,151.0,0.00043209,30]
[400246164,1767215735176,151.0,0.00043209,30]
[400246165,1767215735557,151.0,0.00043209,30]
[400246166,1767215735858,151.0,0.00043209,30]
[400246167,1767215735913,151.0,0.00043209,50]
[400246168,1767215736163,151.0,0.00043209,30]
[400246169,1767215736347,151.0,0.00043209,50]
[400246170,1767215736641,151.0,0.00043209,50]
[400246171,1767215736741,151.0,0.00043209,30]
[400246172,1767215736921,151.0,0.00043209,50]
[400246173,1767215737057,151.0,0.00043209,30]
[400246174,1767215737218,151.0,0.00043209,50]
[400246175,1767215737343,281.087928,0.00043209,30]
[400246176,1767215737505,151.0,0.00043209,50]
[400246177,1767215737702,647.82145195,0.00010398,2]
[400246178,1767215737782,151.0,0.00043209,50]
[400246179,1767215738077,151.0,0.00043209,50]
[400246180,1767215738460,151.0,0.00043209,50]
[400246181,1767215738779,151.0,0.00043209,50]
[400246182,1767215739080,151.0,0.00043209,50]
[400246183,1767215739362,151.0,0.00043209,50]
[400246184,1767215739821,151.0,0.00043209,50]
[400246185,1767215740115,197.729504,0.00043209,50]
[400246186,1767215767321,500.0,0.00043209,120]
[400246187,1767215770937,500.23264625,0.00010398,2]
[400246188,1767215787741,1075.5627485,0.00010299,2]
[400246189,1767215788380,387.51068456,0.00010398,2]
[400246190,1767215800215,175.14729454,0.00010299,2]
[400246191,1767215800926,257.13,7.533e-05,2]
[400246193,1767215819497,230.22359054,0.00010398,2]
[400246194,1767215843065,521.70707359,0.00043209,120]
[400246195,1767215848167,549.864693,0.00043209,120]
[400246196,1767215852072,500.0,0.00010398,2]
[400246197,1767215858436,528.52999084,0.00043209,120]
[400246198,1767215860239,158.2378,0.00010299,2]
[400246199,1767215882019,150.0,0.00010398,2]
[400246200,1767215888597,500.0,0.00010398,2]
[400246201,1767215891701,1200.0,0.00010398,2]
[400246202,1767215916409,500.0,0.00010398,2]
[400246203,1767215927443,3496.48813953,0.00010299,2]
[400246204,1767215927471,184.29836047,0.00010299,2]
[400246205,1767215930463,175.14729453,0.00010299,2]
[400246206,1767215948155,500.0,0.00010398,2]
[400246207,1767215966846,1992.4231,0.00010299,2]
[400246208,1767215979975,500.0,0.00010398,2]
[400246209,1767216001180,300.0,0.00010398,2]
[400246210,1767216001219,300.0,0.00010398,2]
[400246211,1767216001257,1200.0,0.00010398,2]
[400246212,1767216009548,4848.141245,0.00010299,2]
[400246213,1767216009573,311.343655,0.00010299,2]
[400246214,1767216012186,500.0,0.00010398,2]
[400246215,1767216017008,9188.666345,0.00010389,2]
[400246216,1767216017031,10000.01,0.00010389,2]
[400246217,1767216017054,668.22977895,0.00010389,2]
[400246218,1767216044766,500.0,0.00010398,2]
[400246219,1767216061204,500.0,0.00043188,120]
[400246220,1767216061477,300.0,0.00010398,2]
[400246221,1767216076764,865.3681,0.00010299,2]
[400246222,1767216089410,7666.41212105,0.00010299,2]
[400246223,1767216089434,10000.01,0.00010299,2]
[400246224,1767216089458,10000.01,0.00010299,2]
[400246225,1767216089712,10000.01,0.00010299,2]
[400246226,1767216089739,1373.42417895,0.00010299,2]
[400246227,1767216091114,500.0,0.00010398,2]
[400246228,1767216094057,2735.004,0.00010191,2]
[400246229,1767216094194,165.8,0.00010191,2]
[400246230,1767216095415,2500.0,0.00010299,2]
[400246231,1767216121219,300.0,0.00010398,2]
[400246232,1767216142732,2425.78182105,0.00010347,2]
[400246233,1767216142756,155.25763395,0.00010347,2]
[400246234,1767216146942,460.54651983,0.00010398,2]
[400246235,1767216146983,500.0,0.00010398,2]
[400246236,1767216147028,500.0,0.00010398,2]
[400246237,1767216147070,500.0,0.00010398,2]
[400246238,1767216147120,500.0,0.00010398,2]
[400246239,1767216147160,343.87441975,0.00010398,2]
[400246240,1767216147201,306.31240863,0.00010398,2]
[400246241,1767216147239,157.91729844,0.00010398,2]
[400246242,1767216147277,191.86064812,0.00010398,2]
[400246243,1767216147322,500.0,0.00010398,2]
[400246244,1767216147368,500.0,0.00010398,2]
[400246245,1767216147426,500.0,0.00010398,2]
[400246246,1767216147468,500.0,0.00010398,2]
[400246247,1767216147517,500.0,0.00010398,2]
[400246248,1767216147561,500.0,0.00010398,2]
[400246249,1767216147608,500.0,0.00010398,2]
[400246250,1767216147652,500.0,0.00010398,2]
[400246251,1767216147696,500.0,0.00010398,2]
[400246252,1767216147740,500.0,0.00010398,2]
[400246253,1767216147784,500.0,0.00010398,2]
[400246254,1767216147833,500.0,0.00010398,2]
[400246255,1767216147876,384.24107128,0.00010398,2]
[400246256,1767216147905,115.75892872,0.00010398,2]
[400246257,1767216147948,500.0,0.00010398,2]
[400246258,1767216147990,405.10213721,0.00010398,2]
[400246259,1767216157408,500.0,0.00010398,2]
[400246260,1767216157867,500.0,0.00010398,2]
[400246261,1767216158181,500.0,0.00010398,2]
[400246262,1767216158502,500.0,0.00010398,2]
[400246263,1767216158795,500.0,0.00010398,2]
[400246264,1767216158901,1400.7408,0.00010299,2]
[400246265,1767216159108,500.0,0.00010398,2]
[400246266,1767216159432,500.0,0.00010398,2]
[400246267,1767216163749,500.0,0.00010398,2]
[400246268,1767216164047,500.0,0.00010398,2]
[400246269,1767216164765,500.0,0.00010398,2]
[400246270,1767216165472,500.0,0.00010398,2]
[400246271,1767216165525,500.0,0.00010398,2]
[400246272,1767216165582,500.0,0.00010398,2]
[400246273,1767216165632,500.0,0.00010398,2]
[400246274,1767216165689,500.0,0.00010398,2]
[400246275,1767216165739,78.40813407,0.00010398,2]
[400246276,1767216165771,421.59186593,0.00010398,2]
[400246277,1767216165821,500.0,0.00010398,2]
[400246278,1767216165870,500.0,0.00010398,2]
[400246279,1767216165924,500.0,0.00010398,2]
[400246280,1767216165972,500.0,0.00010398,2]
[400246281,1767216166022,555.10213721,0.00010398,2]
[400246282,1767216166074,500.0,0.00010398,2]
[400246283,1767216166123,500.0,0.00010398,2]
[400246284,1767216166177,500.0,0.00010398,2]
[400246285,1767216166448,500.0,0.00010398,2]
[400246286,1767216166508,500.0,0.00010398,2]
[400246287,1767216166562,500.0,0.00010398,2]
[400246288,1767216166611,500.0,0.00010398,2]
[400246289,1767216166667,500.0,0.00010398,2]
[400246290,1767216166714,500.0,0.00010398,2]
[400246291,1767216166769,500.0,0.00010398,2]
[400246293,1767216166820,500.0,0.00010398,2]
[400246294,1767216183526,181.88507025,0.00010398,2]
[400246295,1767216183578,500.0,0.00010398,2]
[400246296,1767216183628,500.0,0.00010398,2]
[400246297,1767216183684,341.43092661,0.00010398,2]